fUSD/lending_fUSD_20250225
["ID","MTS","AMOUNT","RATE_DAILY","PERIOD"]
[354393107,1740468806966,-580.45,0.00059999,120]
[354393108,1740468806975,-170.40419,0.00059999,120]
[354393109,1740468806985,-167.182594,0.00059999,120]
[354393110,1740468806994,-406.014874,0.00059999,120]
[354393111,1740468807004,-554.357489,0.00059999,120]
[354393112,1740468807014,-500.0,0.00059999,120]
[354393113,1740468807024,-500.0,0.00059999,120]
[354393114,1740468807034,-521.68,0.00059999,120]
[354393115,1740468807044,-699.56,0.00059999,120]
[354393116,1740468807054,-500.0,0.00059999,120]
[354393117,1740468807064,-687.3,0.00059999,120]
[354393118,1740468807073,-500.0,0.00059999,120]
[354393119,1740468807083,-452.33084576,0.00059999,120]
[354393120,1740468807093,-1291.42,0.00059999,120]
[354393121,1740468807102,-850.45,0.00059999,120]
[354393122,1740468807116,-836.92,0.00059999,120]
[354393123,1740468807127,-925.53,0.00059999,120]
[354393124,1740468807142,-525.48,0.00059999,120]
[354393125,1740468807153,-1017.7,0.00059999,120]
[354393126,1740468807164,-620.4,0.00059999,120]
[354393127,1740468807174,-637.38,0.00059999,120]
[354393128,1740468807184,-822.2,0.00059999,120]
[354393129,1740468807196,-543.16,0.00059999,120]
[354393130,1740468807206,-1571.07,0.00059999,120]
[354393131,1740468807215,-848.24,0.00059999,120]
[354393132,1740468807225,-943.15,0.00059999,120]
[354393133,1740468807235,-1168.63,0.00059999,120]
[354393134,1740468807244,-500.0,0.00059999,120]
[354393135,1740468807256,-517.51,0.00059999,120]
[354393136,1740468807267,-951.32,0.00059999,120]
[354393137,1740468807277,-1976.81259207,0.00059999,30]
[354393138,1740468807287,-777.26,0.00059999,120]
[354393139,1740468807297,-560.94,0.00059999,120]
[354393140,1740468807307,-404.43,0.00059999,7]
[354393141,1740468807317,-1128.12,0.00059999,120]
[354393142,1740468807327,-610.79,0.00059999,120]
[354393143,1740468807337,-630.83,0.00059999,120]
[354393144,1740468807347,-500.0,0.00059999,120]
[354393145,1740468807357,-500.0,0.00059999,120]
[354393146,1740468807367,-641.8,0.00059999,120]
[354393147,1740468807377,-500.0,0.00059999,120]
[354393148,1740468807391,-1736.97,0.00059999,120]
[354393149,1740468807402,-500.0,0.00059999,120]
[354393150,1740468807411,-551.92,0.00059999,120]
[354393151,1740468807421,-547.47245672,0.00059999,120]
[354393152,1740468807431,-829.97,0.00059999,120]
[354393153,1740468807442,-1884.67,0.00059999,120]
[354393154,1740468807453,-1959.02,0.00059999,120]
[354393155,1740468807463,-687.65,0.00059999,120]
[354393156,1740468807473,-1049.16,0.00059999,120]
[354393157,1740468807483,-353.37584745,0.00059999,120]
[354393158,1740468807494,-556.18977347,0.00059999,120]
[354393159,1740468807504,-910.65,0.00059999,120]
[354393160,1740468807514,-500.0,0.00059999,120]
[354393161,1740468807524,-500.0,0.00059999,120]
[354393162,1740468807533,-1220.8,0.00059999,120]
[354393163,1740468807542,-522.31,0.00059999,120]
[354393164,1740468807552,-1188.98,0.00059999,120]
[354393165,1740468807563,-526.28,0.00059999,120]
[354393166,1740468807572,-1040.34,0.00059999,120]
[354393167,1740468807582,-395.04480196,0.00059999,120]
[354393168,1740468807593,-724.24,0.00059999,120]
[354393169,1740468807602,-1422.51,0.00059999,120]
[354393170,1740468807613,-1615.65,0.00059999,120]
[354393171,1740468807622,-992.42,0.00059999,20]
[354393172,1740468807636,-901.44,0.00059999,120]
[354393173,1740468807647,-816.88,0.00059999,120]
[354393174,1740468807657,-500.0,0.00059999,120]
[354393175,1740468807669,-671.92,0.00059999,120]
[354393176,1740468807679,-955.28,0.00059999,120]
[354393177,1740468807690,-1525.72,0.00059999,120]
[354393178,1740468807701,-1437.76,0.00059999,120]
[354393179,1740468807712,-1132.0,0.00059999,120]
[354393180,1740468807723,-1768.38,0.00059999,120]
[354393181,1740468807733,-872.14,0.00059999,120]
[354393182,1740468807745,-1405.94,0.00059999,120]
[354393183,1740468807755,-1000.0,0.00059999,120]
[354393184,1740468807766,-745.77,0.00059999,120]
[354393185,1740468807776,-500.0,0.00059999,120]
[354393186,1740468807787,-820.25,0.00059999,120]
[354393187,1740468807797,-778.18,0.00059999,120]
[354393188,1740468807808,-500.0,0.00059999,120]
[354393189,1740468807818,-618.03,0.00059999,120]
[354393190,1740468807828,-538.57,0.00059999,120]
[354393191,1740468807838,-659.87,0.00059999,120]
[354393192,1740468807848,-542.24,0.00059999,120]
[354393193,1740468807858,-1379.17,0.00059999,120]
[354393194,1740468807867,-813.45,0.00059999,120]
[354393195,1740468807876,-1790.29,0.00059999,120]
[354393196,1740468807888,-817.76,0.00059999,120]
[354393197,1740468807897,-1159.57,0.00059999,120]
[354393198,1740468807907,-500.0,0.00059999,120]
[354393199,1740468807916,-1035.42,0.00059999,120]
[354393200,1740468807926,-500.0,0.00059999,120]
[354393201,1740468807936,-1067.5,0.00059999,120]
[354393202,1740468807946,-911.5,0.00059999,120]
[354393203,1740468807956,-782.71,0.00059999,120]
[354393204,1740468807965,-692.81,0.00059999,120]
[354393205,1740468807975,-1417.28,0.00059999,120]
[354393206,1740468807986,-4827.95,0.00059999,120]
[354393207,1740468807996,-907.1,0.00059999,120]
[354393208,1740468808007,-1025.54,0.00059999,120]
[354393209,1740468808018,-972.52,0.00059999,120]
[354393210,1740468808028,-1147.6,0.00059999,120]
[354393211,1740468808039,-954.71,0.00059999,120]
[354393212,1740468808048,-508.53,0.00059999,120]
[354393213,1740468808059,-479.7718578,0.00059999,120]
[354393214,1740468808069,-672.91,0.00059999,120]
[354393215,1740468808079,-927.58,0.00059999,120]
[354393216,1740468808090,-1526.64,0.00059999,120]
[354393217,1740468808100,-500.0,0.00059999,120]
[354393218,1740468808114,-1242.39,0.00059999,120]
[354393219,1740468808126,-1600.52,0.00059999,120]
[354393220,1740468808141,-871.61,0.00059999,120]
[354393221,1740468808151,-549.43,0.00059999,120]
[354393222,1740468808165,-552.98,0.00059999,120]
[354393223,1740468808175,-1401.97,0.00059999,120]
[354393224,1740468808185,-1245.93,0.00059999,120]
[354393225,1740468808195,-1142.54,0.00059999,120]
[354393226,1740468808204,-1200.36,0.00059999,120]
[354393227,1740468808213,-500.0,0.00059999,120]
[354393228,1740468808222,-504.05,0.00059999,120]
[354393229,1740468808232,-971.46,0.00059999,120]
[354393230,1740468808241,-187.10041966,0.00059999,120]
[354393231,1740468808251,-599.74,0.00059999,120]
[354393232,1740468808261,-515.75,0.00059999,120]
[354393233,1740468808271,-1301.53,0.00059999,120]
[354393234,1740468808280,-500.0,0.00059999,120]
[354393235,1740468808290,-1377.93,0.00059999,120]
[354393236,1740468808299,-623.61,0.00059999,120]
[354393237,1740468808311,-519.39,0.00059999,120]
[354393238,1740468808321,-1303.38,0.00059999,120]
[354393239,1740468808331,-163.59864261,0.00059999,120]
[354393240,1740468808340,-500.0,0.00059999,120]
[354393241,1740468808351,-585.47,0.00059999,120]
[354393242,1740468808361,-1349.4,0.00059999,120]
[354393243,1740468808371,-552.97,0.00059999,120]
[354393244,1740468808384,-741.84,0.00059999,120]
[354393245,1740468808393,-700.58,0.00059999,2]
[354393246,1740468808403,-2351.09,0.00059999,2]
[354393247,1740468808413,-994.98,0.00059999,30]
[354393248,1740468808423,-715.33,0.00059999,120]
[354393249,1740468808432,-1439.89,0.00059999,120]
[354393250,1740468808442,-943.25,0.00059999,120]
[354393251,1740468808451,-657.52,0.00059999,120]
[354393252,1740468808461,-523.79,0.00059999,120]
[354393253,1740468808470,-1664.27,0.00059999,120]
[354393254,1740468808479,-943.64,0.00059999,120]
[354393255,1740468808488,-516.4,0.00059999,120]
[354393256,1740468808497,-712.11,0.00059999,120]
[354393257,1740468808507,-500.0,0.00059999,120]
[354393258,1740468808517,-888.35,0.00059999,120]
[354393259,1740468808527,-500.0,0.00059999,120]
[354393260,1740468808537,-522.22,0.00059999,120]
[354393261,1740468808546,-1032.87,0.00059999,120]
[354393262,1740468808556,-1438.9,0.00059999,120]
[354393263,1740468808565,-570.8,0.00059999,120]
[354393264,1740468808575,-815.66,0.00059999,120]
[354393265,1740468808585,-500.0,0.00059999,120]
[354393266,1740468808593,-1275.45,0.00059999,120]
[354393267,1740468808603,-3980.64,0.00059999,120]
[354393268,1740468808612,-1206.75,0.00059999,120]
[354393269,1740468808622,-500.0,0.00059999,120]
[354393270,1740468808634,-1130.49,0.00059999,120]
[354393271,1740468808643,-1535.83,0.00059999,120]
[354393272,1740468808653,-1768.01,0.00059999,120]
[354393273,1740468808663,-664.86,0.00059999,120]
[354393274,1740468808673,-696.61,0.00059999,120]
[354393275,1740468808683,-1200.87,0.00059999,120]
[354393276,1740468808693,-1522.97,0.00059999,120]
[354393277,1740468808702,-1393.05,0.00059999,120]
[354393278,1740468808711,-1886.6,0.00059999,120]
[354393279,1740468808721,-1184.76,0.00059999,120]
[354393280,1740468808730,-1319.72,0.00059999,120]
[354393281,1740468808740,-986.38,0.00059999,120]
[354393282,1740468808749,-2022.2,0.00059999,120]
[354393283,1740468808759,-1099.29,0.00059999,120]
[354393284,1740468808768,-512.51,0.00059999,120]
[354393285,1740468808778,-517.98,0.00059999,120]
[354393286,1740468808787,-1030.18,0.00059999,120]
[354393287,1740468808797,-1444.43,0.00059999,120]
[354393288,1740468808807,-971.18,0.00059999,120]
[354393289,1740468808968,-1142.3,0.00059999,120]
[354393290,1740468808978,-1194.04,0.00059999,120]
[354393291,1740468808988,-1748.82,0.00059999,120]
[354393292,1740468808997,-679.54,0.00059999,120]
[354393293,1740468809007,-1309.17,0.00059999,120]
[354393294,1740468809017,-500.0,0.00059999,120]
[354393295,1740468809028,-587.74,0.00059999,120]
[354393296,1740468809038,-778.7,0.00059999,120]
[354393297,1740468809048,-730.67,0.00059999,120]
[354393298,1740468809058,-733.26,0.00059999,120]
[354393299,1740468809068,-1016.76,0.00059999,120]
[354393300,1740468809079,-598.78,0.00059999,120]
[354393301,1740468809090,-789.0,0.00059999,120]
[354393302,1740468809100,-343.780273,0.00059999,120]
[354393303,1740468809115,-1145.46,0.00059999,120]
[354393304,1740468809125,-4362.55,0.00059999,120]
[354393305,1740468809138,-631.53,0.00059999,120]
[354393306,1740468809148,-969.91,0.00059999,120]
[354393307,1740468809162,-759.14,0.00059999,120]
[354393308,1740468809172,-3017.39,0.00059999,120]
[354393309,1740468809183,-2220.86,0.00059999,120]
[354393310,1740468809195,-318.751745,0.00059999,120]
[354393311,1740468809207,-1553.03,0.00059999,120]
[354393312,1740468809217,-722.9,0.00059999,120]
[354393313,1740468809227,-910.26,0.00059999,120]
[354393314,1740468809237,-856.37,0.00059999,120]
[354393315,1740468809247,-887.73,0.00059999,120]
[354393316,1740468809256,-500.0,0.00059999,120]
[354393317,1740468809267,-1830.19,0.00059999,120]
[354393318,1740468809278,-1715.31,0.00059999,120]
[354393319,1740468809288,-686.54,0.00059999,120]
[354393320,1740468809298,-2424.1,0.00059999,120]
[354393321,1740468809308,-1521.55,0.00059999,120]
[354393322,1740468809318,-2919.48,0.00059999,120]
[354393323,1740468809327,-823.47,0.00059999,120]
[354393324,1740468809337,-1738.48,0.00059999,120]
[354393325,1740468809347,-915.34,0.00059999,120]
[354393326,1740468809358,-2711.99,0.00059999,120]
[354393327,1740468809368,-576.99,0.00059999,120]
[354393328,1740468809378,-2110.84,0.00059999,120]
[354393329,1740468809392,-2315.41,0.00059999,120]
[354393330,1740468809402,-3875.43,0.00059999,7]
[354393331,1740468809411,-637.74,0.00059999,120]
[354393332,1740468809421,-1035.71,0.00059999,120]
[354393333,1740468809431,-750.25,0.00059999,120]
[354393334,1740468809441,-3264.88,0.00059999,120]
[354393335,1740468809452,-2938.93,0.00059999,120]
[354393336,1740468809462,-1210.86,0.00059999,120]
[354393337,1740468809472,-534.95,0.00059999,120]
[354393338,1740468809482,-2458.44,0.00059999,120]
[354393339,1740468809491,-703.65,0.00059999,120]
[354393340,1740468809501,-1556.62,0.00059999,120]
[354393341,1740468809511,-500.0,0.00059999,120]
[354393342,1740468809520,-2761.69,0.00059999,120]
[354393343,1740468809530,-585.51,0.00059999,120]
[354393344,1740468809540,-2649.21,0.00059999,120]
[354393345,1740468809550,-1981.89,0.00059999,120]
[354393346,1740468809559,-689.83,0.00059999,120]
[354393347,1740468809569,-2553.02,0.00059999,120]
[354393348,1740468809579,-1493.71,0.00059999,120]
[354393349,1740468809589,-1352.07,0.00059999,120]
[354393350,1740468809599,-2909.1,0.00059999,120]
[354393351,1740468809608,-1667.75,0.00059999,120]
[354393352,1740468809618,-3211.4,0.00059999,120]
[354393353,1740468809628,-1519.71,0.00059999,120]
[354393354,1740468809640,-4349.64,0.00059999,120]
[354393355,1740468809650,-752.34,0.00059999,120]
[354393356,1740468809659,-864.91,0.00059999,120]
[354393357,1740468809668,-1290.66,0.00059999,120]
[354393358,1740468809678,-910.81,0.00059999,5]
[354393359,1740468809689,-2901.27,0.00059999,120]
[354393360,1740468809698,-1857.67,0.00059999,120]
[354393361,1740468809707,-500.0,0.00059999,120]
[354393362,1740468809717,-2986.93,0.00059999,120]
[354393363,1740468809727,-2864.49,0.00059999,120]
[354393364,1740468809736,-2305.88,0.00059999,120]
[354393365,1740468809746,-2121.17,0.00059999,120]
[354393366,1740468809756,-538.64,0.00059999,120]
[354393367,1740468809766,-1452.1,0.00059999,120]
[354393368,1740468809775,-1752.42,0.00059999,120]
[354393369,1740468809785,-1822.96,0.00059999,120]
[354393370,1740468809795,-2477.45,0.00059999,120]
[354393371,1740468809805,-1851.24,0.00059999,120]
[354393372,1740468809815,-607.87,0.00059999,120]
[354393373,1740468809825,-2265.65,0.00059999,120]
[354393374,1740468809834,-3192.11,0.00059999,120]
[354393375,1740468809844,-1530.35,0.00059999,120]
[354393376,1740468809854,-3707.86,0.00059999,120]
[354393377,1740468809863,-1400.72,0.00059999,120]
[354393378,1740468809873,-813.46,0.00059999,120]
[354393379,1740468809885,-1028.29,0.00059999,120]
[354393380,1740468809895,-1470.7,0.00059999,120]
[354393381,1740468809905,-2337.12,0.00059999,120]
[354393382,1740468809914,-3975.46,0.00059999,120]
[354393383,1740468809924,-3333.6,0.00059999,120]
[354393384,1740468809933,-5873.49,0.00059999,120]
[354393385,1740468809943,-1036.75,0.00059999,120]
[354393386,1740468809952,-640.5,0.00059999,120]
[354393388,1740468809962,-562.09,0.00059999,120]
[354393389,1740468809971,-2745.61,0.00059999,120]
[354393390,1740468809980,-707.46,0.00059999,120]
[354393391,1740468809990,-4540.04,0.00059999,120]
[354393392,1740468810000,-1113.18,0.00059999,120]
[354393393,1740468810010,-613.18,0.00059999,120]
[354393394,1740468810020,-3052.04,0.00059999,120]
[354393395,1740468810030,-2703.16,0.00059999,120]
[354393396,1740468810039,-522.41,0.00059999,120]
[354393397,1740468810049,-551.64,0.00059999,120]
[354393398,1740468810058,-1552.51,0.00059999,120]
[354393399,1740468810067,-2971.45,0.00059999,90]
[354393400,1740468810077,-1701.44,0.00059999,120]
[354393401,1740468810087,-553.8,0.00059999,120]
[354393402,1740468810096,-1833.0,0.00059999,120]
[354393403,1740468810106,-2581.17,0.00059999,120]
[354393404,1740468810121,-500.0,0.00059999,120]
[354393405,1740468810133,-522.17,0.00059999,120]
[354393406,1740468810143,-3435.08,0.00059999,120]
[354393407,1740468810152,-857.98,0.00059999,120]
[354393408,1740468810164,-3140.0,0.00059999,120]
[354393409,1740468810174,-3227.53,0.00059999,120]
[354393410,1740468810185,-500.0,0.00059999,120]
[354393411,1740468810194,-775.19,0.00059999,120]
[354393412,1740468810204,-500.0,0.00059999,120]
[354393413,1740468810214,-872.89,0.00059999,120]
[354393414,1740468810224,-2538.08,0.00059999,120]
[354393415,1740468810234,-2940.18,0.00059999,120]
[354393416,1740468810244,-3583.88,0.00059999,120]
[354393417,1740468810253,-2559.65,0.00059999,120]
[354393418,1740468810263,-1118.81,0.00059999,120]
[354393419,1740468810273,-688.16,0.00059999,120]
[354393420,1740468810283,-3329.23,0.00059999,120]
[354393421,1740468810293,-1907.44,0.00059999,120]
[354393422,1740468810303,-3487.12,0.00059999,120]
[354393423,1740468810312,-2138.38,0.00059999,120]
[354393424,1740468810322,-568.38,0.00059999,120]
[354393425,1740468810331,-1469.89,0.00059999,120]
[354393426,1740468810341,-880.12,0.00059999,120]
[354393427,1740468810351,-1941.03,0.00059999,120]
[354393428,1740468810361,-998.34,0.00059999,120]
[354393429,1740468810370,-1969.46,0.00059999,120]
[354393430,1740468810380,-2020.04,0.00059999,120]
[354393431,1740468810392,-1704.77,0.00059999,120]
[354393432,1740468810402,-3000.0,0.00059999,120]
[354393433,1740468810412,-1814.1,0.00059999,120]
[354393434,1740468810422,-3162.2,0.00059999,120]
[354393435,1740468810431,-561.29,0.00059999,120]
[354393436,1740468810441,-4214.34,0.00059999,120]
[354393437,1740468810452,-1107.87,0.00059999,120]
[354393438,1740468810462,-1793.36,0.00059999,120]
[354393439,1740468810472,-1453.67,0.00059999,30]
[354393440,1740468810481,-558.43,0.00059999,120]
[354393441,1740468810491,-1291.79,0.00059999,120]
[354393442,1740468810501,-2203.33,0.00059999,120]
[354393443,1740468810511,-2186.37,0.00059999,120]
[354393444,1740468810521,-2099.71,0.00059999,120]
[354393445,1740468810531,-1541.65,0.00059999,120]
[354393446,1740468810541,-2864.64,0.00059999,120]
[354393447,1740468810550,-1803.36,0.00059999,120]
[354393448,1740468810560,-1506.59,0.00059999,120]
[354393449,1740468810570,-1568.57,0.00059999,120]
[354393450,1740468810580,-980.59,0.00059999,120]
[354393451,1740468810590,-1792.49,0.00059999,120]
[354393452,1740468810599,-1620.72,0.00059999,120]
[354393453,1740468810609,-479.01276633,0.00059999,120]
[354393454,1740468810619,-659.49,0.00059999,120]
[354393455,1740468810628,-500.0,0.00059999,120]
[354393456,1740468810640,-3340.49,0.00059999,120]
[354393457,1740468810650,-849.91,0.00059999,120]
[354393458,1740468810659,-668.51,0.00059999,120]
[354393459,1740468810669,-680.52,0.00059999,120]
[354393460,1740468810678,-1680.11,0.00059999,120]
[354393461,1740468810688,-2006.24,0.00059999,120]
[354393462,1740468810697,-300.0,0.0006,120]
[354393463,1740468810708,-402288.51963669,0.0006,120]
[354393464,1740468810718,-310.79004801,0.0006,120]
[354393465,1740468810728,-1133.39188584,0.0006,30]
[354393466,1740468810738,-1000.0,0.0006,120]
[354393467,1740468810748,-1000.0,0.0006,120]
[354393468,1740468810758,-487.54364615,0.0006,2]
[354393469,1740468810767,-1000.0,0.0006,60]
[354393470,1740468810777,-503.87426208,0.0006,30]
[354393471,1740468810788,-2331.0,0.0006,120]
[354393472,1740468810797,-157.92366292,0.0006,120]
[354393473,1740468810807,-200.0,0.0006,120]
[354393474,1740468810816,-100493.8,0.0006,120]
[354393475,1740468810840,-350.0,0.0006,120]
[354393476,1740468810850,-1000.0,0.0006,120]
[354393477,1740468810859,-1451.0557323,0.0006,120]
[354393478,1740468810869,-150.0,0.0006,30]
[354393479,1740468810878,-157896.60405044,0.0006,120]
[354393480,1740468810891,-200.0,0.0006,120]
[354393481,1740468810900,-502.2142615,0.0006,120]
[354393482,1740468810910,-250.0,0.0006,10]
[354393483,1740468810919,-200.0,0.0006,50]
[354393484,1740468810929,-18000.88976622,0.0006,120]
[354393485,1740468810941,-1242.2032205,0.0006,120]
[354393486,1740468810951,-113521.62203328,0.0006,120]
[354393487,1740468810960,-1040.09671348,0.0006,120]
[354393488,1740468810970,-500.0,0.0006,120]
[354393489,1740468810980,-20000.0,0.0006,90]
[354393490,1740468810989,-341.67232851,0.0006,120]
[354393491,1740468810999,-1000.0,0.0006,120]
[354393492,1740468811330,-72237.06498099,0.0006,120]
[354393493,1740468811395,-45623.53277146,0.0006,20]
[354393494,1740468811405,-6000.0,0.0006,120]
[354393495,1740468811415,-4745.19802009,0.0006,58]
[354393496,1740468811425,-1338.87723622,0.0006,58]
[354393497,1740468811436,-621.63,0.00060137,30]
[354393498,1740468811445,-1283.85925758,0.0006027,120]
[354393499,1740468811455,-1283.85925758,0.0006027,120]
[354393500,1740468811465,-1283.85925758,0.0006027,120]
[354393501,1740468811475,-1283.85925758,0.0006027,120]
[354393502,1740468811486,-1283.85925758,0.0006027,120]
[354393503,1740468811496,-1283.85925758,0.0006027,120]
[354393504,1740468811506,-1283.85925758,0.0006027,120]
[354393505,1740468811516,-1283.85925758,0.0006027,120]
[354393506,1740468811526,-1283.85925758,0.0006027,120]
[354393507,1740468811537,-1283.85925758,0.0006027,120]
[354393508,1740468811548,-1283.85925758,0.0006027,120]
[354393509,1740468811558,-1283.85925758,0.0006027,120]
[354393510,1740468811568,-1283.85925758,0.0006027,120]
[354393511,1740468811578,-1283.85925758,0.0006027,120]
[354393512,1740468811588,-1283.85925758,0.0006027,120]
[354393513,1740468811598,-1283.85925758,0.0006027,120]
[354393514,1740468811608,-1283.85925758,0.0006027,120]
[354393515,1740468811618,-1283.85925758,0.0006027,120]
[354393516,1740468811627,-1283.85925758,0.0006027,120]
[354393517,1740468811639,-1283.85,0.0006027,120]
[354393518,1740468811649,-2995.67160102,0.0006027,120]
[354393519,1740468811658,-2995.67160102,0.0006027,120]
[354393520,1740468811668,-2995.67160102,0.0006027,120]
[354393521,1740468811678,-2995.67160102,0.0006027,120]
[354393522,1740468811688,-2995.67160102,0.0006027,120]
[354393523,1740468811698,-2995.67160102,0.0006027,120]
[354393524,1740468811707,-2995.67160102,0.0006027,120]
[354393525,1740468811717,-2995.67160102,0.0006027,120]
[354393526,1740468811727,-2995.67160102,0.0006027,120]
[354393527,1740468811736,-2995.67160102,0.0006027,120]
[354393528,1740468811748,-2995.67160102,0.0006027,120]
[354393529,1740468811757,-2995.67160102,0.0006027,120]
[354393530,1740468811767,-2995.67160102,0.0006027,120]
[354393531,1740468811777,-2995.67160102,0.0006027,120]
[354393532,1740468811786,-2995.67160102,0.0006027,120]
[354393533,1740468811796,-2995.67160102,0.0006027,120]
[354393534,1740468811806,-2995.67160102,0.0006027,120]
[354393535,1740468811816,-2995.67160102,0.0006027,120]
[354393536,1740468811825,-2995.67160102,0.0006027,120]
[354393537,1740468811836,-2995.67,0.0006027,120]
[354393538,1740468811846,-1627.37207904,0.0006027,120]
[354393539,1740468811857,-1627.37207904,0.0006027,120]
[354393540,1740468811866,-1627.37207904,0.0006027,120]
[354393541,1740468811875,-1627.37207904,0.0006027,120]
[354393542,1740468811888,-1627.37207904,0.0006027,120]
[354393543,1740468811898,-1627.37207904,0.0006027,120]
[354393544,1740468811907,-1627.37207904,0.0006027,120]
[354393545,1740468811917,-1627.37207904,0.0006027,120]
[354393546,1740468811927,-1627.37207904,0.0006027,120]
[354393547,1740468811936,-1627.37207904,0.0006027,120]
[354393548,1740468811945,-1627.37207904,0.0006027,120]
[354393549,1740468811955,-1627.37207904,0.0006027,120]
[354393550,1740468811964,-1627.37207904,0.0006027,120]
[354393551,1740468811974,-1627.37207904,0.0006027,120]
[354393552,1740468811983,-1627.37207904,0.0006027,120]
[354393553,1740468811993,-1627.37207904,0.0006027,120]
[354393554,1740468812002,-1627.37207904,0.0006027,120]
[354393555,1740468812012,-1627.37207904,0.0006027,120]
[354393556,1740468812021,-1627.37207904,0.0006027,120]
[354393557,1740468812031,-1627.37,0.0006027,120]
[354393558,1740468812041,-3797.20151776,0.0006027,120]
[354393559,1740468812050,-3797.20151776,0.0006027,120]
[354393560,1740468812060,-3797.20151776,0.0006027,120]
[354393561,1740468812069,-3797.20151776,0.0006027,120]
[354393562,1740468812079,-3797.20151776,0.0006027,120]
[354393563,1740468812088,-3797.20151776,0.0006027,120]
[354393564,1740468812098,-3797.20151776,0.0006027,120]
[354393565,1740468812107,-3797.20151776,0.0006027,120]
[354393566,1740468812123,-3797.20151776,0.0006027,120]
[354393567,1740468812135,-3797.20151776,0.0006027,120]
[354393568,1740468812144,-3797.20151776,0.0006027,120]
[354393569,1740468812155,-3797.20151776,0.0006027,120]
[354393570,1740468812164,-3797.20151776,0.0006027,120]
[354393571,1740468812174,-3797.20151776,0.0006027,120]
[354393572,1740468812184,-3797.20151776,0.0006027,120]
[354393573,1740468812194,-3797.20151776,0.0006027,120]
[354393574,1740468812203,-3797.20151776,0.0006027,120]
[354393575,1740468812212,-3797.20151776,0.0006027,120]
[354393576,1740468812222,-3797.20151776,0.0006027,120]
[354393577,1740468812231,-3797.2,0.0006027,120]
[354393578,1740468812241,-563.24,0.00060273,120]
[354393579,1740468812250,-580.45,0.00060273,120]
[354393580,1740468812261,-167.182594,0.00060273,120]
[354393581,1740468812270,-406.014874,0.00060273,120]
[354393582,1740468812280,-160.399577,0.00060273,120]
[354393583,1740468812290,-554.357489,0.00060273,120]
[354393584,1740468812300,-484.00504064,0.00060273,120]
[354393585,1740468812310,-500.0,0.00060273,120]
[354393586,1740468812321,-521.68,0.00060273,120]
[354393587,1740468812331,-699.56,0.00060273,120]
[354393588,1740468812342,-500.0,0.00060273,120]
[354393589,1740468812353,-687.3,0.00060273,120]
[354393590,1740468812365,-500.0,0.00060273,120]
[354393591,1740468812376,-1291.42,0.00060273,120]
[354393592,1740468812392,-850.45,0.00060273,120]
[354393593,1740468812402,-836.92,0.00060273,120]
[354393594,1740468812414,-925.53,0.00060273,120]
[354393595,1740468812426,-525.48,0.00060273,120]
[354393596,1740468812437,-1017.7,0.00060273,120]
[354393597,1740468812448,-620.4,0.00060273,120]
[354393598,1740468812462,-637.38,0.00060273,120]
[354393599,1740468812473,-822.2,0.00060273,120]
[354393600,1740468812485,-543.16,0.00060273,120]
[354393601,1740468812496,-1571.07,0.00060273,120]
[354393602,1740468812507,-848.24,0.00060273,120]
[354393603,1740468812518,-943.15,0.00060273,120]
[354393604,1740468812528,-1168.63,0.00060273,120]
[354393605,1740468812539,-500.0,0.00060273,120]
[354393606,1740468812550,-517.51,0.00060273,120]
[354393607,1740468812561,-951.32,0.00060273,120]